Cogmind - Beta 14 @@@ ROGUE MODE // 2024.08.14 @ 01:59:25 Player: Khanable Result: Destroyed by as-22982 with Assembled F-torch Performance ------------- Evolutions (0) 0 Regions Visited (0) 0 Robots Destroyed (5) 25 Value Destroyed (34) 34 Prototype IDs (0) 0 Alien Tech Used (0) 0 Bonus (0) 0 TOTAL SCORE: 59 Bonus ------- None Cogmind --------- Core Integrity 0/250 Matter 284/300 Energy 100/100 System Corruption 24% Temperature Cool (20) Movement Hovering (80) Location -11/Scrapyard Parts ------- > --- POWER (1) -------- (None) > --- PROPULSION (2) --- Combat Airjet > --- UTILITY (2) ------ (None) > --- WEAPON (2) ------- (None) > --- INVENTORY (5) ---- Light Ion Engine Wheel Improved Light Armor Plating Peak State ------------ > --- POWER ------------ Light Ion Engine > --- PROPULSION ------- Wheel Wheel > --- UTILITY ---------- Small Storage Unit Improved Terrain Scanner > --- WEAPON ----------- Small Laser Light Assault Rifle > --- INVENTORY -------- Ion Engine Wheel Wheel EM Pulse Gun [Rating: 9] Favorites ----------- Power Ion Engine Engine Ion Engine Propulsion Wheel Wheel Wheel Hover Unit Combat Airjet Utility Small Storage Unit Device Improved Terrain Scanner Storage Small Storage Unit Weapon Light Assault Rifle Energy Gun Small Laser Ballistic Gun Light Assault Rifle Special Weapon Mining Laser Build | -11 ------- Run | Yrd Slots Evolved . | . Power . | . Propulsion . | . Utility . | . Weapon . | . Parts Attached 25 | 25 Power 5 | 5 Engine 5 | 5 Core . | . Reactor . | . Propulsion 5 | 5 Treads . | . Leg . | . Wheel 4 | 4 Hover 1 | 1 Flight . | . Utility 5 | 5 Device 4 | 4 Storage 1 | 1 Processor . | . Hackware . | . Protection . | . Artifact . | . Weapon 10 | 10 Energy Gun 3 | 3 Energy Cannon . | . Ballistic Gun 3 | 3 Ballistic Cannon . | . Launcher . | . Special Weapon 4 | 4 Impact Weapon . | . Slashing Weapon . | . Piercing Weapon . | . Special Melee Weapon . | . Unidentified Prototypes . | . Parts Lost 13 | 13 Power 2 | 2 Propulsion 4 | 4 Utility 3 | 3 Weapon 4 | 4 Highest Loss Streak 7 | 7 To Critical Strikes . | . Average Slot Usage (%) . | . Peak Build Rating 9 | 9 Average Rating 8 | 8 On Entrance . | . Naked Turns . | . Heaviest Build 13 | 13 Greatest Support 20 | 20 Greatest Overweight (x) 3 | 3 Average Overweight (x) . | . Largest Inventory Capacity 8 | 8 Average Capacity 7 | 7 Most Carried 8 | 8 Average Carried 7 | 7 Final Capacity 5 | 5 Final Carried 3 | 3 Class Distribution -------------------- None Dominant Class ---------------- None Resources | -11 ----------- Run | Yrd Matter Collected 422 | 422 Remotely . | . Salvage Created 190 | 190 Parts 13 | 13 Haulers Intercepted . | . Recyclers Shooed . | . Parts Field Recycled . | . Retrieved Matter . | . Parts Self-Destructed . | . Prevented . | . Kills | -11 ------- Run | Yrd Combat Hostiles Destroyed 3 | 3 Guns 2 | 2 Cannons 1 | 1 Classes Destroyed 3 | 3 Tunneler 4 | 4 Recycler 1 | 1 Assembled 3 | 3 Best Kill Streak 2 | 2 Combat Bots Only 1 | 1 Max Kills in Single Turn 1 | 1 Gunslinging . | . Exploded . | . Melee . | . Uniques/NPCs Destroyed . | . Combat | -11 -------- Run | Yrd Hostile Shots Fired 47 | 47 Missed 12 | 12 Damage Taken 1020 | 1020 Core 255 | 255 Absorbed by Shields . | . Core Remaining (%) . | . Volleys Fired 125 | 125 Largest 2 | 2 Hottest 100 | 100 Shots Fired 150 | 150 Gun 57 | 57 Cannon . | . Launcher . | . Special 93 | 93 Kinetic 30 | 30 Thermal 117 | 117 Explosive . | . Electromagnetic 3 | 3 Robot Hit Streak 9 | 9 Robot Miss Streak 4 | 4 Penetration Max . | . Secondary Targets 1 | 1 Max Gunslinging Chain 1 | 1 Shots Hit Robots 39 | 39 Core Hits 14 | 14 Critical Kills . | . Critical Parts Destroyed . | . Critical Strikes . | . Melee Attacks . | . Impact . | . Slashing . | . Piercing . | . Sneak Attacks . | . Combat Hostiles . | . Follow-up Attacks . | . Damage Inflicted 397 | 397 Guns 362 | 362 Cannons . | . Explosions . | . Melee . | . Ramming 11 | 11 Kinetic 143 | 143 Thermal 211 | 211 Explosive . | . Electromagnetic 32 | 32 Impact . | . Slashing . | . Piercing . | . Highest Corruption 24 | 24 Average Corruption 10 | 10 Corruption Purged . | . Corruption Blocked . | . Effects 11 | 11 Message Errors 2 | 2 Matter Fused 2 | 2 Heat Flow Errors 2 | 2 Energy Discharges 2 | 2 Data Loss (minor) 2 | 2 Misfires 1 | 1 Overload Shots . | . Overflow Damage . | . Projectiles . | . Explosions . | . Melee . | . Knockbacks . | . Impact . | . Kinetic . | . Secondary . | . Self-Inflicted Damage 5 | 5 Shots . | . Rammed 2 | 2 Targets Rammed 2 | 2 Kicked . | . Crushed . | . Highest Temperature 280 | 280 Average Temperature 91 | 91 Received Heat Transfer 40 | 40 Effects 3 | 3 Energy Bleed 1 | 1 Interference 2 | 2 Siege Activations . | . Robots Corrupted . | . Combat Hostiles . | . Parts Fried . | . Impact Corruptions . | . Robots Melted . | . Combat Hostiles . | . Parts Melted . | . Heat Transferred 475 | 475 Parts Sabotaged . | . Parts Stolen . | . Parts Stripped . | . Power Chain Reactions . | . Alert | -11 ------- Run | Yrd Peak Influence 25 | 25 Initial . | . Average 1 | 1 Maximum Alert Level . | . Low Security (%) 100 | 100 Level 1 . | . Level 2 . | . Level 3 . | . Level 4 . | . Level 5 . | . High Security . | . Max Security . | . Squads Dispatched . | . Investigation . | . Extermination . | . Reinforcement . | . Assault . | . Garrison . | . Intercept . | . Searches Triggered . | . Construction Impeded . | . Haulers Reinforced . | . Active Scanning Responses . | . Cargo Convoy Interrupts . | . Stealth | -11 --------- Run | Yrd Distress Signals . | . Communications Jammed . | . Distress Signals . | . Times Spotted 27 | 27 Peak Tracking Total 20 | 20 Tactical Retreats 4 | 4 Traps | -11 ------- Run | Yrd Traps Triggered . | . Indirectly . | . Trap Hack Attempts . | . Triggered . | . Disarmed . | . Reprogrammed . | . Reused . | . Traps Extracted . | . Installed . | . Triggered . | . Machines | -11 ---------- Run | Yrd Machines Disabled . | . Max in Single Turn . | . Machines Repaired . | . Machines Dismantled . | . Machines Sabotaged . | . Overloaded Fab Kills . | . Hacking | -11 --------- Run | Yrd Machines Accessed . | . Terminals . | . Fabricators . | . Repair Stations . | . Recycling Units . | . Scanalyzers . | . Garrison Access . | . Total Hacks . | . Successful . | . Failed . | . Catastrophic . | . Database Lockouts . | . Manual . | . Terminals . | . Fabricators . | . Repair Stations . | . Recycling Units . | . Scanalyzers . | . Garrison Access . | . Terminal Hacks . | . Fabricator Hacks . | . Repair Station Hacks . | . Recycling Unit Hacks . | . Scanalyzer . | . Garrison Access Hacks . | . Unauthorized Hacks . | . Terminals . | . Fabricators . | . Repair Stations . | . Recycling Units . | . Scanalyzers . | . Garrison Access . | . Data Cores Recovered . | . Used . | . Hacking Detections . | . Full Trace Events . | . Feedback Events . | . Feedback Blocked . | . Robot Schematics Acquired . | . Robots Built . | . Authchips . | . Time . | . Total Robot Build Rating . | . Part Schematics Acquired . | . Parts Built . | . Authchips . | . Time . | . Total Part Build Rating . | . Parts Repaired . | . Time . | . Parts Recycled . | . Recycled Matter . | . Retrieved Matter . | . Retrieved Components . | . Parts Scanalyzed . | . Part Schematics Acquired . | . Parts Damaged . | . Bothacking | -11 ------------ Run | Yrd Used RIF Installer . | . Robots Hacked . | . Non-combat . | . Combat . | . Robot Hacks Applied . | . Relay Couplers Released . | . Fabnet Peak Effective % . | . Robots Rewired . | . Allies Hacked . | . Hacks Repelled . | . Allies | -11 -------- Run | Yrd Total Allies . | . Largest Group . | . Highest-Rated Group . | . Highest-Rated Ally . | . Total Orders . | . Ally Attacks . | . Total Damage . | . Kills . | . Allies Corrupted . | . Allies Melted . | . Intel | -11 ------- Run | Yrd Robot Analysis Total . | . Derelict Logs Recovered . | . Drone Launches . | . Drone Recoveries . | . Exploration | -11 ------------- Run | Yrd Turns Passed 4282 | 4282 Spaces Moved 1143 | 1143 Core 16 | 16 Treads . | . Legs . | . Wheels 1117 | 1117 Hover 10 | 10 Flight . | . Fastest Speed 50 | 50 Average Speed 80 | 80 Slowest Speed 200 | 200 Overloaded Moves . | . Propulsion Burnouts . | . Robots Hopped . | . Cave-ins Triggered 2 | 2 Exploration Rate (%) 59 | 59 Regions Visited . Branch Regions . Pre-discovered Areas . | . Known Exits Taken . | . Unknown Exits Taken . | . Scrap Searched . | . Spaces Dug 34 | 34 Terrain Destroyed 38 | 38 Melee . | . Projectile 38 | 38 AOE . | . Terrain Rammed . | . Walls Destroyed . | . Machines Disabled . | . Actions | -11 --------- Run | Yrd Total 4172 | 4172 Wait 2856 | 2856 Move 1143 | 1143 Hop . | . Pick Up 15 | 15 Fast Attach 7 | 7 Attach 8 | 8 Detach . | . Swap 10 | 10 Drop 6 | 6 Fire 125 | 125 Melee . | . Ram 2 | 2 Kick . | . Crush . | . Escape Stasis . | . Rewire . | . Trap . | . Miscellaneous . | . Route ------- -11/Scrapyard (discovered 1 exit: [*Mat]) History --------- Turn | Location | Event 31 | -11/Scrapyard | Discovered new exit (range 16) 4034 | -11/Scrapyard | Assembled infested the area 4060 | -11/Scrapyard | Crushed by falling debris 4068 | -11/Scrapyard | Crushed by falling debris 4068 | -11/Scrapyard | System corruption reached 10% 4099 | -11/Scrapyard | Lost 6 parts (1p2n1u2w) 4261 | -11/Scrapyard | Core integrity fell below 50% 4274 | -11/Scrapyard | Core integrity fell below 20% 4283 | -11/Scrapyard | Destroyed by as-22982 with Assembled F-torch Last Messages --------------- Acquired 1 matter. System corrupted: Matter fused (-10). Acquired 14 matter. System corrupted: Matter fused (-8). Acquired 8 matter. System corrupted: Component data lost. Lgt. Assault Rifle destroyed. as-69775 destroyed. Wheel destroyed. Sml. Storage Unit destroyed. System corrupted by crushing effect (+2). Lgt. Ion Engine destroyed. Wheel destroyed. Mining Laser destroyed. System corrupted by crushing effect (+3). System corrupted by crushing effect (+5). System corrupted by crushing effect (+2). Seismic Detector destroyed. System corrupted by crushing effect (+2). Slammed into as-22982. Map ----- +----------------------------------------------------+ | #??????#?#???#????### " #?##?#?#??##???#??##? | | #?????????????????#?# " #???#????????#?????## | | ?????#?#?????#?????### " #??#?#?###??##??#??#? | | ????????#??#???##????# " #?#?#?#??#??#?#?????? | | ????#????##???##?????# ###?##????#??????###??# | | ##???????#???#?#?????### ##?#??#???#?#?#???#??? | | ####################### ##############?#?#??????? | | ## ## # # ##??####???# | | ## ## # # ##???##???# | | ## ## #??#??##??? | | ## ## # #?#?##?##?# | | ## ## #####?####? | | ## ### ######### # ################??#??# | | ###### ### # #####?######?##??#### | | # ##??#?#?#?###???##?# | | # ####??############### | | ########## # #??##?#?####???###?## | | #??###???## ## #a ###?#######??#?###??# | | ???????#??# ## # # ###??##?######???####? | | ??##?####?# ## # # ###############???##?# | | ########### ## # # #########?##?##?##?#### | | ?# ?# ## ## #?#???####???##?###??# | | ?# # ### ###a####?################### | | ## # #?# ##?# #??######?## ## | | ?# #?########?# ##?####?#### # # | | ?# # ##?????#??##@############ # # | | ?# # #??##??#???#a # # | | ## #?#???????##%#### # | | ?# # #???????#?# # # # | | ?# # #?###?????# # # # | | ?########## ########??# # # # | | ???# # #??# # # # | | #??# # #??# # ########## | | #??# # # #??# # #######??# | | ???# % #?## # #?#####?## | | ???# # # ##?# # ########?# | | ???# #% # ###?## # #?##?#???? | | ?#?######## ######?#### # ###?#????? | | ####???# #??????# # ########? | | #?#?# #??????# # #?#?#?### | | #??## ##########%### ###??#??# | | * ##### % ###?#?##? | | == %! ##???##?#? | | = ############## #??#??#??? | | *! ##### % < #???########### #???#?##?# | | #???# #???## # #?######## | | #?#?###########??# # ## | | ###########?????????# # | | # ##?#??????# # # | | # #?????????# # | +----------------------------------------------------+ Best States ------------- Heat Dissipation 25 Energy Generation 10 Energy Capacity 250 Matter Stores 300 Matter Capacity 300 Sight Range 16 Terrain Scan Range 16 Terrain Scan Density 10 Evasion (%) 49 Item Schematics ----------------- None Robot Schematics ------------------ None Fabricated ------------ Nothing Alien Tech Used ----------------- None Achievements -------------- Curiosity Killed The Cat Hunted Slippery One Challenges ------------ None Game ------ Seed AluminumActuatorFacilitator Manual? 0 Play Time 00:36:36 Cumulative 22.3 hours Start 2024.08.14 @ 00:48:13 End 2024.08.14 @ 01:59:25 Sessions 0 Manual Loads 0 Difficulty Rogue Special Mode None Game No. 25 Rogue 25 Adventurer 0 Explorer 0 Win Type - Total 0 Types 0/0/0/0/0/0/0/0/0 Lore% 5 Gallery% 22 Achievement% 21 Wizard Run 0 Options --------- Layout 1 ASCII 0 Keyboard 1 Movement Vi Keybinds 0 Fullscreen 1 Font 32/SmallcapsGlow Map View 77x35 Zoom Use 0% Tactical HUD 0 Map Filters NONE Filters NONE Steam 1 RUN: 57d6cdd4-2f66-41c4-af4a-4c6c9ff4006d